fUSD/lending_fUSD_20250906
["ID","MTS","AMOUNT","RATE_DAILY","PERIOD"]
[383833758,1757137848265,-344.91441206,0.00045491,2]
[383833759,1757137848274,-500.0,0.00045551,30]
[383833760,1757137848284,-151.0,0.000456,120]
[383833761,1757137848294,-175.8525877,0.000457,90]
[383833762,1757137848304,-223.76566616,0.000457,120]
[383833763,1757137848313,-200.0,0.00045706,2]
[383833764,1757137848323,-746.0,0.00045754,5]
[383833765,1757137848335,-3509.95542347,0.000458,2]
[383833766,1757137848345,-20000.0,0.000459,2]
[383833767,1757137848355,-500.0,0.00045956,30]
[383833768,1757137848365,-235.87398347,0.00046,120]
[383833769,1757137848375,-152.1307941,0.00046,120]
[383833770,1757137848385,-5953.03247289,0.00046,120]
[383833771,1757137848395,-218.9480284,0.00046,120]
[383833772,1757137848405,-746.0,0.00046028,5]
[383833773,1757137848415,-500.7550062,0.00046028,30]
[383833774,1757137848424,-4000.0,0.0004603,8]
[383833775,1757137848434,-301.15,0.00046125,30]
[383833776,1757137848444,-541.44,0.00046125,30]
[383833777,1757137848454,-802.0,0.00046125,30]
[383833778,1757137848464,-174.35,0.00046125,30]
[383833779,1757137848473,-541.44,0.00046125,30]
[383833780,1757137848483,-476.45,0.00046125,30]
[383833781,1757137848493,-333.06,0.00046125,30]
[383833782,1757137848503,-1188.56,0.00046125,30]
[383833783,1757137848512,-409.88,0.00046125,30]
[383833784,1757137848522,-150.0,0.00046125,30]
[383833785,1757137848532,-174.35,0.00046125,30]
[383833786,1757137848544,-802.0,0.00046125,30]
[383833787,1757137848554,-409.88,0.00046125,30]
[383833788,1757137848563,-150.0,0.00046125,30]
[383833789,1757137848573,-174.35,0.00046125,30]
[383833790,1757137848582,-150.0,0.00046125,30]
[383833791,1757137848593,-174.35,0.00046125,30]
[383833792,1757137848603,-150.0,0.00046125,30]
[383833793,1757137848615,-540.54,0.00046125,30]
[383833794,1757137848626,-409.19,0.00046125,30]
[383833795,1757137848636,-150.0,0.00046125,30]
[383833796,1757137848646,-311.45,0.00046125,30]
[383833797,1757137848655,-424.48,0.00046125,30]
[383833798,1757137848664,-150.0,0.00046125,30]
[383833799,1757137848675,-237.35046727,0.0004613,120]
[383833800,1757137848684,-700.0,0.00046187,30]
[383833801,1757137848694,-5367.39,0.000462,30]
[383833802,1757137848705,-746.0,0.00046301,5]
[383833803,1757137848715,-4020.9003244,0.00046384,2]
[383833804,1757137848725,-6351.7269899,0.00046388,2]
[383833805,1757137848734,-35546.2644821,0.00046388,2]
[383833806,1757137848743,-537.2726097,0.00046388,2]
[383833807,1757137848753,-269.2214565,0.00046388,2]
[383833808,1757137848763,-166.7513593,0.00046388,2]
[383833809,1757137848772,-454.5968734,0.00046388,2]
[383833810,1757137848782,-708.52361486,0.000464,120]
[383833811,1757137848791,-171.76784317,0.000464,120]
[383833812,1757137848802,-14874.68,0.000464,14]
[383833813,1757137848812,-470.72,0.00046445,30]
[383833814,1757137848821,-802.0,0.00046445,30]
[383833815,1757137848831,-802.0,0.00046445,30]
[383833816,1757137848840,-470.72,0.00046445,30]
[383833817,1757137848850,-470.72,0.00046445,30]
[383833818,1757137848860,-802.0,0.00046445,30]
[383833819,1757137848870,-802.0,0.00046445,30]
[383833820,1757137848880,-802.0,0.00046445,30]
[383833821,1757137848890,-802.0,0.00046445,30]
[383833822,1757137848899,-802.0,0.00046445,30]
[383833823,1757137848909,-746.0,0.00046575,5]
[383833824,1757137848919,-300.5,0.00046582,30]
[383833825,1757137848928,-376.21,0.00046582,30]
[383833826,1757137848938,-541.44,0.00046582,30]
[383833827,1757137848948,-409.88,0.00046582,30]
[383833828,1757137848957,-155.77,0.00046582,30]
[383833829,1757137848967,-302.71,0.00046582,30]
[383833830,1757137848976,-255.45,0.00046582,30]
[383833831,1757137848986,-723.07,0.00046582,30]
[383833832,1757137849100,-166.62,0.00046582,30]
[383833833,1757137849110,-151.07,0.00046582,30]
[383833834,1757137849120,-156.13,0.00046582,30]
[383833835,1757137849130,-174.35,0.00046582,30]
[383833836,1757137849139,-409.88,0.00046582,30]
[383833837,1757137849149,-150.0,0.00046582,30]
[383833838,1757137849159,-166.62,0.00046582,30]
[383833839,1757137849168,-150.0,0.00046582,30]
[383833840,1757137849178,-541.44,0.00046582,30]
[383833841,1757137849188,-150.0,0.00046582,30]
[383833842,1757137849197,-409.88,0.00046582,30]
[383833843,1757137849207,-174.35,0.00046582,30]
[383833844,1757137849216,-166.62,0.00046582,30]
[383833845,1757137849226,-541.44,0.00046582,30]
[383833846,1757137849236,-150.0,0.00046582,30]
[383833847,1757137849245,-166.62,0.00046582,30]
[383833848,1757137849255,-174.35,0.00046582,30]
[383833849,1757137849265,-409.88,0.00046582,30]
[383833850,1757137849274,-150.0,0.00046582,30]
[383833851,1757137849284,-150.0,0.00046582,30]
[383833852,1757137849294,-541.44,0.00046582,30]
[383833853,1757137849303,-174.35,0.00046582,30]
[383833854,1757137849312,-541.44,0.00046582,30]
[383833855,1757137849322,-166.62,0.00046582,30]
[383833856,1757137849333,-402.24,0.00046582,30]
[383833857,1757137849343,-150.0,0.00046582,30]
[383833858,1757137849354,-164.85,0.00046582,30]
[383833859,1757137849364,-174.35,0.00046582,30]
[383833860,1757137849374,-541.44,0.00046582,30]
[383833861,1757137849383,-541.44,0.00046582,30]
[383833862,1757137849393,-174.35,0.00046582,30]
[383833863,1757137849403,-391.0,0.000466,2]
[383833864,1757137849413,-500.0,0.00046701,30]
[383833865,1757137849423,-17456.04,0.00046737,2]
[383833866,1757137849433,-10997.36,0.00046737,30]
[383833867,1757137849443,-177.7784422,0.000468,60]
[383833868,1757137849452,-746.0,0.00046849,5]
[383833869,1757137849462,-150.48,0.00046856,30]
[383833870,1757137849471,-357.6762453,0.0004686,2]
[383833871,1757137849481,-553.06406207,0.00047,120]
[383833872,1757137849498,-720.23,0.00047,30]
[383833873,1757137849512,-600.0,0.00047019,30]
[383833874,1757137849522,-700.0,0.00047046,30]
[383833875,1757137849532,-172.61,0.00047064,2]
[383833876,1757137849543,-746.0,0.00047123,5]
[383833877,1757137849553,-2414.69886968,0.00047304,120]
[383833878,1757137849563,-154.89,0.00047364,2]
[383833879,1757137849573,-764.83606105,0.00047397,5]
[383833880,1757137849583,-541.44,0.00047404,30]
[383833881,1757137849592,-541.44,0.00047404,30]
[383833882,1757137849603,-541.44,0.00047404,30]
[383833883,1757137849613,-541.44,0.00047404,30]
[383833884,1757137849623,-174.35,0.00047404,30]
[383833885,1757137849633,-444.44,0.00047404,30]
[383833886,1757137849643,-436.7,0.00047404,30]
[383833887,1757137849653,-1589.0,0.00047404,30]
[383833888,1757137849664,-195.26523371,0.000475,120]
[383833889,1757137849674,-5281.40996035,0.000476,2]
[383833890,1757137849684,-500.0,0.000476,30]
[383833891,1757137849694,-283.18,0.00047905,120]
[383833892,1757137849704,-560.49745556,0.00047905,30]
[383833893,1757137849714,-527069.7297645,0.00048,120]
[383833894,1757137849766,-5602.19442981,0.00048,120]
[383833895,1757137850084,-30361.68449067,0.00048,120]
[383833896,1757137850113,-1177.03307154,0.00048,120]
[383833897,1757137850142,-22423.84514994,0.00048,120]
[383833898,1757137850375,-167.87,0.00031305,2]
[383833899,1757137850385,-167.87,0.00035219,2]
[383833900,1757137850395,-395.91643799,0.00036921,11]
[383833913,1757138436490,511.9,0.00017453,2]
[383833914,1757138436716,511.9,0.00018371,2]
[383833915,1757138438157,-162.75265133,0.0001929,2]
[383833916,1757138440853,-159.97,0.0001929,2]
[383833917,1757138443403,-189.17734867,0.0001929,2]
[383833918,1757138443430,-58.95,0.00020208,2]
[383833983,1757138536752,328.64,0.00028964,120]
[383834027,1757138592330,-152.0,0.00019701,2]
[383834028,1757138592355,-31.68,0.00020108,2]
[383834030,1757138660533,-259.66335185,0.00019647,2]
[383834031,1757138662672,-138.15764815,0.00019647,2]
[383834032,1757138742312,-151.68,0.00020108,2]
[383834033,1757138759115,-44.36493114,0.00020108,2]
[383834034,1757138759139,-452.95,0.00020208,2]
[383834035,1757138759164,-377.27843894,0.00021127,2]
[383834036,1757138766553,-315.31919124,0.000202,2]
[383834038,1757138798096,-134.62156106,0.00021127,2]
[383834039,1757138798119,-66.52618634,0.00021795,2]
[383834041,1757138839085,-233.47120716,0.00021795,2]
[383834042,1757138842109,-341.45282895,0.00021795,2]
[383834043,1757138844106,-225.0602225,0.00021795,2]
[383834045,1757138964129,-247.5945076,0.00022019,2]
[383834046,1757138964152,-511.9,0.00022045,2]
[383834047,1757138964173,-250.0,0.00022119,2]
[383834048,1757138964195,-250.0,0.0002222,2]
[383834049,1757138964220,-247.59450759,0.00022846,2]
[383834050,1757138964242,-3404.052547,0.00022848,2]
[383834051,1757138964267,-338.42166073,0.00022964,2]
[383834052,1757138969071,-173.47833927,0.00022964,2]
[383834053,1757138969092,-135.70112573,0.00023552,2]
[383834054,1757138972103,-232.72747785,0.00023452,2]
[383834055,1757138972125,-723.61562595,0.00023552,2]
[383834056,1757138972150,-340.68324832,0.00023552,2]
[383834057,1757138972170,-300.0,0.00023552,2]
[383834058,1757138972191,-300.0,0.00023553,2]
[383834059,1757138972212,-1200.0,0.00023553,2]
[383834060,1757138972235,-247.59450759,0.00023673,2]
[383834061,1757138972256,-151.0,0.00023705,2]
[383834062,1757138972277,-201.25542629,0.00023705,2]
[383834063,1757138972297,-544.0014978,0.00023719,2]
[383834064,1757138972332,-455.9985022,0.00023719,2]
[383834065,1757138972352,-1400.0,0.00023719,2]
[383834066,1757138972373,-27558.57724533,0.0002372,2]
[383834068,1757139032018,-232.72747781,0.00023496,2]
[383834069,1757139032027,-250.0,0.00023518,2]
[383834070,1757139032035,-232.72747781,0.0002354,2]
[383834071,1757139032043,-1527.20044901,0.00023573,2]
[383834072,1757139032052,-232.72747781,0.00023585,2]
[383834073,1757139032061,-232.72747781,0.00023629,2]
[383834074,1757139032071,-1701.87,0.00023673,2]
[383834075,1757139032080,-232.72747781,0.00023673,2]
[383834076,1757139032090,-300.0,0.00023719,2]
[383834077,1757139032101,-300.0,0.00023719,2]
[383834078,1757139032111,-1200.0,0.00023719,2]
[383834079,1757139032121,-21445.83839699,0.0002372,2]
[383834080,1757139032187,-15104.07966586,0.0002372,2]
[383834081,1757139032198,-500.0,0.00023773,2]
[383834082,1757139032209,-428.88427858,0.00023773,2]
[383834083,1757139032219,-500.0,0.00023773,2]
[383834084,1757139032229,-449.86059194,0.00023773,2]
[383834085,1757139032240,-351.063536,0.00023773,2]
[383834086,1757139032250,-501.88947314,0.00023773,2]
[383834087,1757139032260,-502.3290438,0.00023773,2]
[383834088,1757139032270,-511.9,0.00023882,2]
[383834089,1757139032280,-250.0,0.0002425,2]
[383834090,1757139032290,-511.9,0.00024801,2]
[383834091,1757139032300,-6703.57,0.0002509,2]
[383834092,1757139032311,-245.94,0.00025091,2]
[383834093,1757139032320,-906.52857303,0.0002514,2]
[383834094,1757139032351,-769.89142697,0.0002514,2]
[383834096,1757139032361,-361.73,0.00025189,2]
[383834098,1757139032371,-150.0,0.00025218,2]
[383834100,1757139032381,-427.35,0.00025249,2]
[383834101,1757139032390,-2916.68,0.00025292,2]
[383834102,1757139032400,-250.0,0.00025329,2]
[383834103,1757139032410,-522.76,0.00025453,2]
[383834105,1757139032420,-666.0,0.00025487,3]
[383834106,1757139032429,-877.0,0.00025553,2]
[383834108,1757139032439,-1861.99751463,0.00025612,2]
[383834660,1757139037820,-553.21,0.00025612,2]
[383834679,1757139037986,-2584.79248537,0.00025612,2]
[383834681,1757139037995,-511.9,0.00025719,2]
[383834683,1757139038005,-271.0,0.00025729,2]
[383834685,1757139038014,-250.0,0.00025846,2]
[383834687,1757139038023,-712.0,0.00025847,2]
[383834689,1757139038032,-511.9,0.00026638,2]
[383834691,1757139038042,-546.5187,0.00027137,2]
[383834693,1757139038051,-751.15,0.00027418,2]
[383834695,1757139038060,-511.9,0.00027557,2]
[383834697,1757139038070,-169.33,0.00027833,2]
[383834699,1757139038079,-44579.5031533,0.00027964,2]
[383834701,1757139038088,-500.0,0.00027973,5]
[383834702,1757139038098,-298.1415017,0.00027999,2]
[383834704,1757139038107,-500.0,0.00027999,2]
[383834706,1757139038116,-500.0,0.00027999,2]
[383834708,1757139038126,-266.92751746,0.00027999,2]
[383834711,1757139038135,-343.78917434,0.00027999,2]
[383834712,1757139038145,-500.0,0.00027999,2]
[383834714,1757139038154,-500.0,0.00027999,2]
[383834716,1757139038163,-500.0,0.00027999,2]
[383834718,1757139038172,-500.0,0.00027999,2]
[383834720,1757139038182,-365.0601679,0.00027999,2]
[383834722,1757139038191,-500.0,0.00027999,2]
[383834724,1757139038200,-500.0,0.00027999,2]
[383834726,1757139038209,-398.14082518,0.00027999,2]
[383834728,1757139038219,-500.0,0.00027999,2]
[383834730,1757139038228,-500.0,0.00027999,2]
[383834732,1757139038238,-500.0,0.00027999,2]
[383834734,1757139038247,-500.0,0.00027999,2]
[383834736,1757139038256,-1983.03390142,0.00028,3]
[383834738,1757139038265,-511.9,0.00028475,2]
[383834740,1757139038274,-311.98342157,0.00028521,5]
[383834742,1757139038283,-250.65801763,0.00029094,2]
[383834744,1757139038293,-4006.21701785,0.00029173,2]
[383834746,1757139038302,-62716.73133004,0.00029201,2]
[383834748,1757139038312,-511.9,0.00029394,2]
[383834750,1757139038321,-500.0,0.00029502,2]
[383834752,1757139038330,-150.0,0.0002987,5]
[383834754,1757139038339,-9222.25068541,0.00029989,2]
[383834756,1757139038349,-188.78,0.00030244,30]
[383834758,1757139038358,-500.0,0.00030299,7]
[383834760,1757139038368,-500.0,0.00030303,7]
[383834762,1757139038377,-511.9,0.00030312,2]
[383834764,1757139038386,-2898.01,0.00030375,2]
[383834766,1757139038395,-250.0,0.00030418,5]
[383834768,1757139038404,-35902.53814498,0.00030572,2]
[383834770,1757139038414,-350.0,0.00030966,5]
[383834772,1757139038424,-511.9,0.00031231,2]
[383834774,1757139038434,-2000.0,0.000315,2]
[383834776,1757139038443,-300.62595561,0.00031514,5]
[383834778,1757139038453,-200.569,0.00031596,29]
[383834780,1757139038462,-1123.697,0.00031596,29]
[383834782,1757139038472,-600.0,0.00031698,7]
[383834784,1757139038481,-506.66119486,0.00031826,7]
[383834786,1757139038491,-511.9,0.00032149,2]
[383834788,1757139038500,-600.0,0.00032579,7]
[383834790,1757139038509,-328.64,0.00032584,120]
[383834792,1757139038519,-500.0,0.00032751,7]
[383834794,1757139038528,-4006.21701781,0.00032809,2]
[383834796,1757139038537,-500.0,0.00032834,7]
[383834798,1757139038547,-158.90282413,0.00032877,7]
[383834800,1757139038557,-511.9,0.00033068,2]
[383834802,1757139038565,-500.0,0.00033091,7]
[383834804,1757139038575,-511.9,0.00033986,2]
[383834806,1757139038584,-200.0,0.00034,30]
[383834808,1757139038593,-500.0,0.00034029,7]
[383834810,1757139038602,-600.0,0.00034274,7]
[383834812,1757139038612,-600.0,0.00034284,7]
[383834814,1757139038621,-364.46,0.00034285,2]
[383834816,1757139038630,-500.0,0.00034448,7]
[383834818,1757139038639,-200.0,0.00034523,2]
[383834820,1757139038648,-160.0,0.00034703,7]
[383834821,1757139038657,-477.17,0.00034816,2]
[383834823,1757139038667,-1500.0,0.00034826,16]
[383834826,1757139038676,-7974.26,0.00034867,2]
[383834828,1757139038686,-511.9,0.00034905,2]
[383834829,1757139038695,-219.3,0.00034905,2]
[383834831,1757139038704,-5000.0,0.00034929,2]
[383834834,1757139038713,-150.0,0.00034952,2]
[383834836,1757139038723,-610.0,0.00034973,2]
[383834838,1757139038732,-2000.0,0.000352,2]
[383834839,1757139038741,-173.746022,0.00035616,10]
[383834841,1757139038750,-237.969024,0.00035616,10]
[383834843,1757139038759,-157.319005,0.00035616,10]
[383834845,1757139038768,-600.0,0.00035704,7]
[383834847,1757139038778,-600.0,0.0003589,7]
[383834849,1757139038787,-560.49745556,0.00035914,7]
[383834851,1757139038797,-300.0,0.00036161,2]
[383834853,1757139038806,-328.64,0.00036204,120]
[383834855,1757139038815,-4006.21701781,0.00036446,2]
[383834857,1757139038824,-188.78,0.00036468,30]
[383834859,1757139038834,-219.3,0.0003665,2]
[383834861,1757139038844,-500.0,0.00036767,2]
[383834863,1757139038853,-157.00556454,0.000372,120]
[383834865,1757139038862,-212.67823062,0.00037245,2]
[383834867,1757139038871,-160.0,0.00037245,2]
[383834869,1757139038881,-160.0,0.00037245,2]
[383834871,1757139038891,-500.0,0.00037265,7]
[383834873,1757139038900,-514.85095374,0.00037385,2]
[383834875,1757139038909,-160.0,0.00037385,2]
[383834877,1757139038919,-280.0,0.000374,30]
[383834879,1757139038928,-2884.205556,0.00037528,7]
[383834881,1757139038938,-1461.365518,0.00037528,7]
[383834883,1757139038947,-300.0,0.00037531,2]
[383834885,1757139038956,-500.0,0.00037539,7]
[383834887,1757139038966,-161.0,0.00038,120]
[383834889,1757139038975,-151.0,0.00038,120]
[383834891,1757139038984,-150.0,0.00038336,120]
[383834893,1757139038994,-219.3,0.00038396,2]
[383834895,1757139039004,-500.0,0.0003844,7]
[383834898,1757139039014,-500.0,0.00038471,7]
[383834899,1757139039023,-6918.76530681,0.0003849,3]
[383834902,1757139039033,-3011.38049103,0.00038498,120]
[383834904,1757139039043,-13410.0,0.000385,120]
[383834905,1757139039052,-156.82,0.00038528,2]
[383834908,1757139039062,-155.0,0.00038528,2]
[383834909,1757139039071,-2000.0,0.000389,2]
[383834911,1757139039081,-500.0,0.00038955,7]
[383834913,1757139039090,-500.0,0.00039058,7]
[383834916,1757139039099,-500.0,0.00039077,7]
[383834918,1757139039109,-3075.74065578,0.00039173,11]
[383834920,1757139039118,-600.0,0.00039214,7]
[383834921,1757139039127,-69187.6530681,0.00039266,3]
[383834923,1757139039136,-500.0,0.00039273,5]
[383834925,1757139039146,-147021.48,0.00039276,7]
[383834927,1757139039155,-500.0,0.00039797,7]
[383834929,1757139039164,-328.64,0.00039825,120]
[383834931,1757139039173,-514.85095374,0.0004,3]
[383834933,1757139039183,-600.0,0.00040056,30]
[383834935,1757139039192,-6918.76530681,0.00040072,3]
[383834937,1757139039201,-4006.21701781,0.00040082,15]
[383834939,1757139039210,-219.3,0.00040141,2]
[383834941,1757139039220,-500.0,0.00040517,30]
[383834943,1757139039229,-500.0,0.00040869,30]
[383834945,1757139039239,-600.0,0.00040922,30]
[383834948,1757139039248,-6918.76530681,0.00040925,3]
[383834950,1757139039258,-500.0,0.00040935,30]
[383834952,1757139039267,-500.0,0.00041096,10]
[383834953,1757139039276,-415.94018472,0.00041096,14]
[383834955,1757139039285,-900.0,0.000411,2]
[383834958,1757139039295,-563.0,0.000411,2]
[383834960,1757139039304,-250.0,0.000411,2]
[383834961,1757139039314,-1110.0,0.000411,2]
[383834963,1757139039323,-391.0,0.0004114,30]
[383834966,1757139039332,-600.0,0.00041312,30]
[383834968,1757139039342,-1001.53246808,0.00041644,10]
[383834970,1757139039353,-500.0,0.00041765,30]
[383834972,1757139039363,-151.0,0.000418,120]
[383834974,1757139039373,-219.3,0.00041886,2]
[383834975,1757139039382,-200.0,0.00041919,2]
[383834976,1757139039391,-600.0,0.00042152,30]
[383834977,1757139039402,-600.0,0.00042213,30]
[383834978,1757139039410,-636.91655497,0.00042416,5]
[383834979,1757139039420,-2000.0,0.000426,2]
[383834980,1757139039430,-188.78,0.00042692,120]
[383834981,1757139039439,-595.92,0.00042817,30]
[383834982,1757139039447,-328.64,0.00043445,120]
[383834983,1757139039455,-6918.76530681,0.00043708,3]
[383834984,1757139039462,-4006.21701781,0.00043718,15]
[383834985,1757139039470,-299.04201661,0.00043836,10]
[383834986,1757139039478,-427.91926182,0.00043836,31]
[383834988,1757139039488,-600.0,0.00043876,30]
[383834990,1757139039498,-500.0,0.00043936,30]
[383834992,1757139039507,-600.0,0.00043944,30]
[383834994,1757139039517,-600.64390325,0.00044181,30]
[383834996,1757139039527,-500.0,0.00044277,30]
[383834998,1757139039537,-430.82057607,0.000444,33]
[383835000,1757139039546,-847.25009171,0.00044509,2]
[383835002,1757139039555,-500.0,0.00044713,30]
[383835004,1757139039564,-847.25009171,0.00044738,2]
[383835006,1757139039574,-161.0,0.000448,120]
[383835008,1757139039583,-500.0,0.00044847,30]
[383835010,1757139039592,-500.0,0.00044931,5]
[383835012,1757139039601,-500.0,0.00044931,5]
[383835014,1757139039610,-156.62978029,0.00044931,5]
[383835016,1757139039620,-500.0,0.00044931,5]
[383835018,1757139039629,-500.0,0.00044931,5]
[383835020,1757139039638,-150.0,0.00044931,2]
[383835022,1757139039647,-500.0,0.00044931,5]
[383835024,1757139039657,-150.0,0.00044931,5]
[383835025,1757139039667,-150.0,0.00044931,5]
[383835027,1757139039677,-684.0,0.00044931,5]
[383835030,1757139039686,-150.0,0.00044931,5]
[383835031,1757139039695,-500.0,0.00044931,5]
[383835033,1757139039704,-500.0,0.00044931,5]
[383835035,1757139039713,-500.0,0.00044931,5]
[383835037,1757139039723,-150.0,0.00044931,5]
[383835039,1757139039732,-500.0,0.00044931,5]
[383835041,1757139039742,-150.0,0.00044931,5]
[383835043,1757139039751,-150.0,0.00044931,5]
[383835045,1757139039760,-500.0,0.00044931,5]
[383835047,1757139039770,-150.0,0.00044931,5]
[383835049,1757139039779,-150.0,0.00044931,5]
[383835051,1757139039789,-150.12073758,0.00044931,5]
[383835054,1757139039799,-500.0,0.00044931,5]
[383835055,1757139039808,-847.25009171,0.00044935,2]
[383835057,1757139039818,-6918.76530681,0.00044972,3]
[383835059,1757139039827,-5800.0,0.00044982,14]
[383835061,1757139039837,-500.0,0.00045205,5]
[383835063,1757139039846,-500.0,0.00045205,5]
[383835065,1757139039855,-500.0,0.00045205,5]
[383835067,1757139039865,-500.0,0.00045205,5]
[383835091,1757139040071,-551.33219181,0.00045205,5]
[383835093,1757139040081,-150.0,0.00045205,5]
[383835095,1757139040094,-150.0,0.00045205,5]
[383835097,1757139040103,-684.0,0.00045205,5]
[383835099,1757139040113,-150.0,0.00045205,5]
[383835101,1757139040123,-553.51431984,0.00045205,5]
[383835103,1757139040133,-574.40912336,0.00045205,5]
[383835105,1757139040143,-500.0,0.00045205,5]
[383835107,1757139040152,-150.43454314,0.00045205,5]
[383835109,1757139040163,-500.0,0.00045205,5]
[383835111,1757139040172,-150.0,0.00045205,5]
[383835113,1757139040182,-150.0,0.00045205,5]
[383835115,1757139040191,-210.7891279,0.00045205,5]
[383835117,1757139040200,-552.90497398,0.00045205,5]
[383835119,1757139040210,-150.88004069,0.00045205,5]
[383835121,1757139040220,-500.0,0.00045205,5]
[383835123,1757139040229,-548.0,0.00045254,60]
[383835125,1757139040238,-600.0,0.00045399,30]
[383835127,1757139040248,-847.25009171,0.0004544,2]
[383835129,1757139040257,-500.0,0.00045479,5]
[383835131,1757139040268,-500.0,0.00045479,5]
[383835133,1757139040277,-500.0,0.00045479,5]
[383835135,1757139040287,-500.0,0.00045479,5]
[383835137,1757139040296,-156.53,0.00045479,5]
[383835139,1757139040305,-150.0,0.00045479,5]
[383835141,1757139040315,-684.0,0.00045479,5]
[383835143,1757139040324,-150.0,0.00045479,5]
[383835145,1757139040333,-500.0,0.00045479,5]
[383835147,1757139040343,-202.55214732,0.00045479,5]
[383835149,1757139040352,-150.0,0.00045479,5]
[383835151,1757139040361,-150.0,0.00045479,5]
[383835153,1757139040373,-500.0,0.00045479,5]
[383835155,1757139040382,-1226.48,0.00045486,30]
[383835157,1757139040391,-847.25009171,0.00045533,2]
[383835159,1757139040401,-151.0,0.000456,120]
[383835161,1757139040411,-500.0,0.00045602,30]
[383835163,1757139040420,-300.0,0.00045651,30]
[383835165,1757139040430,-200.0,0.00045694,2]
[383835167,1757139040439,-500.0,0.00045753,5]
[383835169,1757139040448,-500.0,0.00045753,5]
[383835171,1757139040458,-203.74986867,0.00045753,5]
[383835173,1757139040467,-218.09078051,0.00045753,5]
[383835175,1757139040476,-201.61319408,0.00045753,5]
[383835177,1757139040485,-684.0,0.00045753,5]
[383835179,1757139040495,-150.0,0.00045753,5]
[383835181,1757139040504,-274.37490696,0.00045753,5]
[383835183,1757139040514,-150.0,0.00045753,5]
[383835185,1757139040523,-150.0,0.00045753,5]
[383835187,1757139040532,-151.96654232,0.00045753,5]
[383835189,1757139040542,-1081.98,0.0004576,30]
[383835191,1757139040551,-600.0,0.00045869,30]
[383835193,1757139040560,-500.0,0.00045912,30]
[383835195,1757139040570,-151.0,0.00045973,5]
[383835197,1757139040580,-151.0,0.00045973,5]
[383835199,1757139040589,-151.0,0.00045973,5]
[383835201,1757139040598,-151.0,0.00045973,5]
[383835203,1757139040607,-847.25009171,0.00045996,2]
[383835205,1757139040616,-500.0,0.00046027,5]
[383835207,1757139040626,-500.0,0.00046027,5]
[383835209,1757139040635,-684.0,0.00046027,5]
[383835211,1757139040644,-150.0,0.00046027,5]
[383835213,1757139040655,-203.12660046,0.00046027,5]
[383835215,1757139040664,-201.60424676,0.00046027,5]
[383835217,1757139040673,-6918.76530681,0.00046034,3]
[383835219,1757139040684,-847.25009171,0.00046136,2]
[383835221,1757139040693,-13837.5306136,0.00046228,3]
[383835223,1757139040702,-541.44,0.00046238,30]
[383835225,1757139040712,-436.7,0.00046238,30]
[383835227,1757139040722,-541.44,0.00046238,30]
[383835229,1757139040732,-541.44,0.00046238,30]
[383835231,1757139040741,-985.88,0.00046238,30]
[383835233,1757139040751,-174.35,0.00046238,30]
[383835235,1757139040760,-1589.0,0.00046238,30]
[383835237,1757139040769,-150.48,0.00046238,30]
[383835239,1757139040779,-150.0,0.00046238,30]